[Event "FIDE-Online-Steinitz-Memorial-Women"]
[Site "Internet"]
[Date "2020.05.15"]
[Round "1.1"]
[White "Khademalsharieh, Sarasadat"]
[Black "Lei, Tingjie"]
[Result "1/2-1/2"]
[ECO "D71"]
[WhiteElo "2431"]
[BlackElo "2530"]
[Annotator "RC"]
[PlyCount "128"]
[EventDate "2020.05.15"]
[EventType "tourn"]
[SourceTitle "playchess.com"]
[Source "ChessBase"]
[SourceQuality "1"]
[TimeControl "180+2"]

1. d4 Nf6 2. c4 {[%emt 0:00:05]} g6 {[%emt 0:00:04]} 3. g3 {[%emt 0:00:02]} c6 {[%emt 0:00:02]} 4. Bg2 {[%emt 0:00:04]} d5 {[%emt 0:00:02]} 5. e3 {[%emt 0:00:01]} Bg7 {[%emt 0:00:02]} 6. Ne2 {[%emt 0:00:02]} O-O {[%emt 0:00:01]} 7. O-O {[%emt 0:00:01]} b6 {[%emt 0:00:27]} 8. b3 {[%emt 0:00:06]} Bb7 {[%emt 0:00:03]} 9. a4 {[%emt 0:00:08]} a5 {[%emt 0:00:19]} 10. Nbc3 {[%emt 0:00:10]} e6 {[%emt 0:00:04]} 11. Ba3 {[%emt 0:00:02]} Re8 {[%emt 0:00:01]} 12. cxd5 {[%emt 0:00:21]} exd5 {[%emt 0:00:02]} 13. Rc1 {[%emt 0:00:02]} Nbd7 {[%emt 0:00:01]} 14. Nf4 {[%emt 0:00:04]} Bf8 {[%emt 0:00:07]} 15. Bxf8 {[%emt 0:00:03]} Nxf8 {[%emt 0:00:01]} 16. Qd2 {[%emt 0:00:05]} Qd6 {[%emt 0:00:05]} 17. Rfd1 {[%emt 0:00:03]} Rad8 {[%emt 0:00:02]} 18. Nd3 {[%emt 0:00:02]} N6d7 {[%emt 0:00:03]} 19. Qb2 {[%emt 0:00:03]} Ba6 {[%emt 0:00:11]} 20. Nf4 {[%emt 0:00:05]} Ne6 {[%emt 0:00:04]} 21. Nxe6 {[%emt 0:00:03]} Qxe6 {[%emt 0:00:03]} 22. Ne2 {[%emt 0:00:17]} Qd6 {[%emt 0:00:05]} 23. Nf4 {[%emt 0:00:02]} Nf6 {[%emt 0:00:03]} 24. Nd3 {[%emt 0:00:04]} Bxd3 {[%emt 0:00:29]} 25. Rxd3 {[%emt 0:00:02]} Rc8 {[%emt 0:00:03]} 26. Rdc3 {[%emt 0:00:06]} Ne4 {[%emt 0:00:06]} 27. R3c2 {[%emt 0:00:06]} h5 {[%emt 0:00:03]} 28. Rb1 {[%emt 0:00:15]} Qb4 {[%emt 0:00:35]} 29. Rbc1 {[%emt 0:00:13]} Qd6 {[%emt 0:00:02]} 30. Rb1 {[%emt 0:00:10]} Qb4 {[%emt 0:00:01]} 31. Qc1 {[%emt 0:00:01]} Qd6 {[%emt 0:00:17]} 32. Qe1 {[%emt 0:00:01]} Ra8 {[%emt 0:00:17]} 33. b4 {[%emt 0:00:13]} axb4 {[%emt 0:00:01]} 34. Qxb4 {[%emt 0:00:05]} Qxb4 {[%emt 0:00:02]} 35. Rxb4 {[%emt 0:00:01]} c5 {[%emt 0:00:01]} 36. Rxb6 {[%emt 0:00:06]} cxd4 {[%emt 0:00:01]} 37. Bxe4 {[%emt 0:00:10]} Rxe4 {[%emt 0:00:04]} 38. exd4 {[%emt 0:00:08]} Rxa4 {[%emt 0:00:02]} 39. Rd6 {[%emt 0:00:02]} Raxd4 {[%emt 0:00:03]} 40. h4 {[%emt 0:00:05]} Re1+ {[%emt 0:00:02]} 41. Kg2 {[%emt 0:00:01]} Rdd1 {[%emt 0:00:02]} 42. Rc7 {[%emt 0:00:03]} Re6 {[%emt 0:00:03]} 43. Rd8+ {[%emt 0:00:06]} Kg7 {[%emt 0:00:02]} 44. Rcd7 {[%emt 0:00:01]} Re5 {[%emt 0:00:02]} 45. Rc7 {[%emt 0:00:12]} Rd2 {[%emt 0:00:02]} 46. Rc3 {[%emt 0:00:01]} Rf5 {[%emt 0:00:05]} 47. Rf3 {[%emt 0:00:01]} Kf6 {[%emt 0:00:02]} 48. Rxf5+ {[%emt 0:00:05]} Kxf5 {[%emt 0:00:01]} 49. Re8 {[%emt 0:00:01]} f6 {[%emt 0:00:01]} 50. Kf3 {[%emt 0:00:02]} g5 {[%emt 0:00:01]} 51. hxg5 {[%emt 0:00:03]} fxg5 {[%emt 0:00:04]} 52. Rf8+ {[%emt 0:00:01]} Kg6 {[%emt 0:00:02]} 53. Rg8+ {[%emt 0:00:04]} Kf6 {[%emt 0:00:01]} 54. Rf8+ {[%emt 0:00:01]} Kg7 {[%emt 0:00:02]} 55. Rf5 {[%emt 0:00:03]} Kg6 {[%emt 0:00:01]} 56. Rf8 {[%emt 0:00:02]} d4 {[%emt 0:00:02]} 57. Rd8 {[%emt 0:00:01]} g4+ {[%emt 0:00:03]} 58. Kg2 {[%emt 0:00:05]} Kf5 {[%emt 0:00:01]} 59. Rd5+ {[%emt 0:00:02]} Kg6 {[%emt 0:00:05]} 60. Kf1 {[%emt 0:00:06]} d3 {[%emt 0:00:04]} 61. Ke1 {[%emt 0:00:01]} Re2+ {[%emt 0:00:01]} 62. Kf1 {[%emt 0:00:01]} Rd2 {[%emt 0:00:01]} 63. Ke1 {[%emt 0:00:01]} Re2+ {[%emt 0:00:01]} 64. Kf1 {[%emt 0:00:01]} Rd2 {[%emt 0:00:01]} 1/2-1/2

[Event "FIDE-Online-Steinitz-Memorial-Women"]
[Site "Internet"]
[Date "2020.05.15"]
[Round "1.1"]
[White "Abdumalik, Zhansaya"]
[Black "Stefanova, Antoaneta"]
[Result "1/2-1/2"]
[ECO "C70"]
[WhiteElo "2409"]
[BlackElo "2485"]
[Annotator "RC"]
[PlyCount "128"]
[EventDate "2020.05.15"]
[EventType "tourn"]
[SourceTitle "playchess.com"]
[Source "ChessBase"]
[SourceQuality "1"]
[TimeControl "180+2"]

1. e4 e5 2. Nf3 {[%emt 0:00:06]} Nc6 {[%emt 0:00:04]} 3. Bb5 {[%emt 0:00:02]} a6 {[%emt 0:00:01]} 4. Ba4 {[%emt 0:00:02]} g6 {[%emt 0:00:01]} 5. d4 {[%emt 0:00:08]} b5 {[%emt 0:00:03]} 6. Bb3 {[%emt 0:00:02]} exd4 {[%emt 0:00:01]} 7. Nxd4 {[%emt 0:00:07]} Bb7 {[%emt 0:00:02]} 8. a4 {[%emt 0:00:06]} Bg7 {[%emt 0:00:09]} 9. Nxc6 {[%emt 0:00:10]} dxc6 {[%emt 0:00:02]} 10. Qe2 {[%emt 0:00:09]} Qe7 {[%emt 0:00:04]} 11. O-O {[%emt 0:00:07]} Nf6 {[%emt 0:00:04]} 12. Re1 {[%emt 0:00:07]} Nd7 {[%emt 0:00:09]} 13. c3 {[%emt 0:00:07]} O-O {[%emt 0:00:14]} 14. Bf4 {[%emt 0:00:08]} Nc5 {[%emt 0:00:02]} 15. Bc2 {[%emt 0:00:02]} Rfe8 {[%emt 0:00:15]} 16. Nd2 {[%emt 0:00:04]} Ne6 {[%emt 0:00:09]} 17. Be3 {[%emt 0:00:12]} b4 {[%emt 0:00:01]} 18. cxb4 {[%emt 0:00:12]} Qxb4 {[%emt 0:00:03]} 19. Rab1 {[%emt 0:00:08]} a5 {[%emt 0:00:06]} 20. Qc4 {[%emt 0:00:06]} Nd4 {[%emt 0:00:07]} 21. Qxb4 {[%emt 0:00:18]} axb4 {[%emt 0:00:03]} 22. Bd1 {[%emt 0:00:01]} c5 {[%emt 0:00:07]} 23. Rc1 {[%emt 0:00:05]} b3 {[%emt 0:00:12]} 24. Rxc5 {[%emt 0:00:12]} Rxa4 {[%emt 0:00:06]} 25. Rxc7 {[%emt 0:00:05]} Rb4 {[%emt 0:00:27]} 26. Bxd4 {[%emt 0:00:10]} Bxd4 {[%emt 0:00:04]} 27. Bxb3 {[%emt 0:00:01]} Rf8 {[%emt 0:00:06]} 28. Rc4 {[%emt 0:00:05]} Rxc4 {[%emt 0:00:05]} 29. Nxc4 {[%emt 0:00:01]} Ba6 {[%emt 0:00:04]} 30. Nd6 {[%emt 0:00:05]} Bxb2 {[%emt 0:00:07]} 31. f4 {[%emt 0:00:09]} Bd4+ {[%emt 0:00:06]} 32. Kh1 {[%emt 0:00:02]} Kg7 {[%emt 0:00:04]} 33. e5 {[%emt 0:00:06]} Bc5 {[%emt 0:00:12]} 34. Ra1 {[%emt 0:00:08]} Bd3 {[%emt 0:00:09]} 35. Rd1 {[%emt 0:00:05]} Be2 {[%emt 0:00:02]} 36. Re1 {[%emt 0:00:03]} Bd3 {[%emt 0:00:02]} 37. h3 {[%emt 0:00:10]} Rb8 {[%emt 0:00:05]} 38. Bd5 {[%emt 0:00:04]} Rf8 {[%emt 0:00:17]} 39. Rd1 {[%emt 0:00:02]} Be2 {[%emt 0:00:03]} 40. Rb1 {[%emt 0:00:01]} h5 {[%emt 0:00:05]} 41. Rb7 {[%emt 0:00:03]} Bxd6 {[%emt 0:00:06]} 42. exd6 {[%emt 0:00:01]} Kf6 {[%emt 0:00:00]} 43. Kg1 {[%emt 0:00:05]} Bd3 {[%emt 0:00:02]} 44. Kf2 {[%emt 0:00:03]} Bf5 {[%emt 0:00:01]} 45. Ke3 {[%emt 0:00:03]} Be6 {[%emt 0:00:01]} 46. Be4 {[%emt 0:00:02]} Rd8 {[%emt 0:00:03]} 47. Rb6 {[%emt 0:00:01]} Rc8 {[%emt 0:00:02]} 48. Kd4 {[%emt 0:00:03]} Rc1 {[%emt 0:00:02]} 49. Bd3 {[%emt 0:00:03]} Rd1 {[%emt 0:00:02]} 50. Ke3 {[%emt 0:00:05]} Re1+ {[%emt 0:00:06]} 51. Kd2 {[%emt 0:00:01]} Rg1 {[%emt 0:00:01]} 52. Be4 {[%emt 0:00:00]} Rf1 {[%emt 0:00:02]} 53. Bf3 {[%emt 0:00:01]} Ra1 {[%emt 0:00:03]} 54. Rb7 {[%emt 0:00:05]} Ra6 {[%emt 0:00:03]} 55. d7 {[%emt 0:00:01]} Rd6+ {[%emt 0:00:01]} 56. Ke3 {[%emt 0:00:01]} Rxd7 {[%emt 0:00:01]} 57. Rxd7 {[%emt 0:00:01]} Bxd7 {[%emt 0:00:01]} 58. g4 {[%emt 0:00:01]} hxg4 {[%emt 0:00:03]} 59. hxg4 {[%emt 0:00:01]} Kg7 {[%emt 0:00:02]} 60. g5 {[%emt 0:00:02]} Be6 {[%emt 0:00:01]} 61. Ke4 {[%emt 0:00:02]} Kf8 {[%emt 0:00:00]} 62. Ke5 {[%emt 0:00:01]} Ke7 {[%emt 0:00:01]} 63. Be4 {[%emt 0:00:00]} Bh3 {[%emt 0:00:02]} 64. Bd5 {[%emt 0:00:01]} Bf5 {[%emt 0:00:03]} 1/2-1/2

[Event "FIDE-Online-Steinitz-Memorial-Women"]
[Site "Internet"]
[Date "2020.05.15"]
[Round "2"]
[White "Stefanova, Antoaneta"]
[Black "Cori T., Deysi"]
[Result "1-0"]
[ECO "E14"]
[WhiteElo "2485"]
[BlackElo "2391"]
[Annotator "RC"]
[PlyCount "137"]
[EventDate "2020.05.15"]
[EventType "tourn"]
[SourceTitle "playchess.com"]
[Source "ChessBase"]
[SourceQuality "1"]
[TimeControl "180+2"]

1. d4 Nf6 2. Nf3 {[%emt 0:00:06]} e6 {[%emt 0:00:04]} 3. e3 {[%emt 0:00:02]} b6 {[%emt 0:00:03]} 4. Bd3 {[%emt 0:00:02]} Bb7 {[%emt 0:00:01]} 5. O-O {[%emt 0:00:02]} d5 {[%emt 0:00:03]} 6. c4 {[%emt 0:00:01]} Nbd7 {[%emt 0:00:02]} 7. cxd5 {[%emt 0:00:07]} exd5 {[%emt 0:00:02]} 8. Ne5 {[%emt 0:00:01]} Bd6 {[%emt 0:00:04]} 9. f4 {[%emt 0:00:01]} c5 {[%emt 0:00:01]} 10. Nc3 {[%emt 0:00:02]} O-O {[%emt 0:00:02]} 11. Qf3 {[%emt 0:00:02]} Qe7 {[%emt 0:00:20]} 12. Bd2 {[%emt 0:00:05]} Rac8 {[%emt 0:00:19]} 13. Be1 {[%emt 0:00:11]} cxd4 {[%emt 0:00:25]} 14. exd4 {[%emt 0:00:02]} Ne4 {[%emt 0:00:24]} 15. Nxe4 {[%emt 0:00:19]} dxe4 {[%emt 0:00:02]} 16. Bxe4 {[%emt 0:00:05]} Bxe4 {[%emt 0:00:02]} 17. Qxe4 {[%emt 0:00:01]} Nf6 {[%emt 0:00:02]} 18. Qf3 {[%emt 0:00:19]} Qe6 {[%emt 0:00:15]} 19. Bh4 {[%emt 0:00:09]} Bxe5 {[%emt 0:00:09]} 20. dxe5 {[%emt 0:00:06]} Nd5 {[%emt 0:00:02]} 21. Rae1 {[%emt 0:00:06]} Rc4 {[%emt 0:00:17]} 22. f5 {[%emt 0:00:08]} Qc6 {[%emt 0:00:04]} 23. Bg3 {[%emt 0:00:02]} Nb4 {[%emt 0:00:12]} 24. Qxc6 {[%emt 0:00:08]} Rxc6 {[%emt 0:00:01]} 25. a3 {[%emt 0:00:02]} Nd3 {[%emt 0:00:02]} 26. Re2 {[%emt 0:00:01]} Re8 {[%emt 0:00:01]} 27. Rd1 {[%emt 0:00:09]} Nc5 {[%emt 0:00:03]} 28. h3 {[%emt 0:00:14]} h5 {[%emt 0:00:04]} 29. b4 {[%emt 0:00:04]} Na4 {[%emt 0:00:02]} 30. Rd7 {[%emt 0:00:02]} a5 {[%emt 0:00:03]} 31. bxa5 {[%emt 0:00:03]} bxa5 {[%emt 0:00:02]} 32. Ra7 {[%emt 0:00:02]} Rc1+ {[%emt 0:00:09]} 33. Kh2 {[%emt 0:00:02]} Nc3 {[%emt 0:00:02]} 34. Re3 {[%emt 0:00:06]} Nb5 {[%emt 0:00:28]} 35. Rxa5 {[%emt 0:00:05]} Nd4 {[%emt 0:00:01]} 36. e6 {[%emt 0:00:14]} fxe6 {[%emt 0:00:05]} 37. fxe6 {[%emt 0:00:01]} Nxe6 {[%emt 0:00:03]} 38. Rxh5 {[%emt 0:00:05]} Kf7 {[%emt 0:00:05]} 39. Rf5+ {[%emt 0:00:02]} Kg6 {[%emt 0:00:01]} 40. Rfe5 {[%emt 0:00:02]} Kf6 {[%emt 0:00:04]} 41. Bh4+ {[%emt 0:00:05]} Kf7 {[%emt 0:00:02]} 42. a4 {[%emt 0:00:02]} Rc4 {[%emt 0:00:03]} 43. R5e4 {[%emt 0:00:05]} Rxe4 {[%emt 0:00:01]} 44. Rxe4 {[%emt 0:00:01]} Ra8 {[%emt 0:00:01]} 45. Be1 {[%emt 0:00:03]} Nc5 {[%emt 0:00:03]} 46. Rf4+ {[%emt 0:00:01]} Ke6 {[%emt 0:00:03]} 47. a5 {[%emt 0:00:02]} Nd3 {[%emt 0:00:01]} 48. Rf1 {[%emt 0:00:07]} g6 {[%emt 0:00:06]} 49. Bd2 {[%emt 0:00:03]} Ne5 {[%emt 0:00:02]} 50. Ra1 {[%emt 0:00:02]} Ra6 {[%emt 0:00:01]} 51. Bc3 {[%emt 0:00:02]} Nc4 {[%emt 0:00:01]} 52. g4 {[%emt 0:00:02]} Kd5 {[%emt 0:00:02]} 53. Kg3 {[%emt 0:00:03]} Ke4 {[%emt 0:00:01]} 54. h4 {[%emt 0:00:02]} Ne3 {[%emt 0:00:01]} 55. Rb1 {[%emt 0:00:14]} Kd3 {[%emt 0:00:02]} 56. Be1 {[%emt 0:00:03]} Rf6 {[%emt 0:00:01]} 57. Bf2 {[%emt 0:00:06]} Nxg4 {[%emt 0:00:04]} 58. Kxg4 {[%emt 0:00:02]} Rxf2 {[%emt 0:00:02]} 59. Ra1 {[%emt 0:00:02]} Rg2+ {[%emt 0:00:04]} 60. Kf4 {[%emt 0:00:02]} Rh2 {[%emt 0:00:02]} 61. Kg5 {[%emt 0:00:03]} Rg2+ {[%emt 0:00:01]} 62. Kf4 {[%emt 0:00:03]} Rh2 {[%emt 0:00:02]} 63. Kg3 {[%emt 0:00:02]} Rc2 {[%emt 0:00:01]} 64. a6 {[%emt 0:00:02]} Rc8 {[%emt 0:00:01]} 65. a7 {[%emt 0:00:01]} Ra8 {[%emt 0:00:01]} 66. Kg4 {[%emt 0:00:01]} Kc3 {[%emt 0:00:03]} 67. Kg5 {[%emt 0:00:02]} Kb2 {[%emt 0:00:00]} 68. Ra6 {[%emt 0:00:02]} Kb3 {[%emt 0:00:02]} 69. Kxg6 {[%emt 0:00:01]} 1-0

[Event "FIDE-Online-Steinitz-Memorial-Women"]
[Site "Internet"]
[Date "2020.05.15"]
[Round "3"]
[White "Abdumalik, Zhansaya"]
[Black "Sebag, Marie"]
[Result "0-1"]
[ECO "B90"]
[WhiteElo "2409"]
[BlackElo "2482"]
[Annotator "ChessBase"]
[PlyCount "124"]
[EventDate "2020.05.15"]
[EventType "tourn"]
[SourceTitle "playchess.com"]
[Source "ChessBase"]
[SourceQuality "1"]
[TimeControl "180+2"]

1. e4 c5 2. Nf3 {[%emt 0:00:04]} d6 {[%emt 0:00:04]} 3. d4 {[%emt 0:00:01]} cxd4 {[%emt 0:00:01]} 4. Nxd4 {[%emt 0:00:00]} Nf6 {[%emt 0:00:01]} 5. Nc3 {[%emt 0:00:01]} a6 {[%emt 0:00:01]} 6. h3 {[%emt 0:00:01]} e5 {[%emt 0:00:01]} 7. Nde2 {[%emt 0:00:01]} h5 {[%emt 0:00:01]} 8. g3 {[%emt 0:00:01]} Be7 {[%emt 0:00:01]} 9. Bg2 {[%emt 0:00:02]} Nbd7 {[%emt 0:00:04]} 10. a4 {[%emt 0:00:03]} b6 {[%emt 0:00:01]} 11. O-O {[%emt 0:00:09]} Bb7 {[%emt 0:00:02]} 12. Bg5 {[%emt 0:00:10]} Rc8 {[%emt 0:00:02]} 13. Qd2 {[%emt 0:00:08]} O-O {[%emt 0:00:16]} 14. Rad1 {[%emt 0:00:05]} Qc7 {[%emt 0:00:01]} 15. Kh2 {[%emt 0:00:11]} Rfe8 {[%emt 0:00:22]} 16. f4 {[%emt 0:00:12]} b5 {[%emt 0:00:22]} 17. axb5 {[%emt 0:00:23]} axb5 {[%emt 0:00:01]} 18. Nxb5 {[%emt 0:00:14]} Qxc2 {[%emt 0:00:04]} 19. Nbc3 {[%emt 0:00:04]} Qxd2 {[%emt 0:00:23]} 20. Rxd2 {[%emt 0:00:02]} Rc4 {[%emt 0:00:02]} 21. fxe5 {[%emt 0:00:27]} dxe5 {[%emt 0:00:37]} 22. Rf5 {[%emt 0:00:26]} g6 {[%emt 0:00:35]} 23. Bxf6 {[%emt 0:00:12]} Nxf6 {[%emt 0:00:24]} 24. Rxe5 {[%emt 0:00:01]} Kf8 {[%emt 0:00:01]} 25. Nf4 {[%emt 0:00:05]} Rb4 {[%emt 0:00:03]} 26. Nfd5 {[%emt 0:00:19]} Nxd5 {[%emt 0:00:01]} 27. exd5 {[%emt 0:00:02]} Bd6 {[%emt 0:00:02]} 28. Rxe8+ {[%emt 0:00:04]} Kxe8 {[%emt 0:00:01]} 29. Ne4 {[%emt 0:00:00]} Be5 {[%emt 0:00:02]} 30. h4 {[%emt 0:00:07]} Kd8 {[%emt 0:00:03]} 31. Nc5 {[%emt 0:00:02]} Bc8 {[%emt 0:00:03]} 32. b3 {[%emt 0:00:04]} Bd6 {[%emt 0:00:02]} 33. Ne4 {[%emt 0:00:03]} Be5 {[%emt 0:00:01]} 34. Rf2 {[%emt 0:00:05]} Bf5 {[%emt 0:00:01]} 35. Re2 {[%emt 0:00:05]} Rd4 {[%emt 0:00:03]} 36. Ng5 {[%emt 0:00:04]} Rxh4+ {[%emt 0:00:02]} 37. Kg1 {[%emt 0:00:01]} Bxg3 {[%emt 0:00:02]} 38. Nxf7+ {[%emt 0:00:02]} Kd7 {[%emt 0:00:01]} 39. Ne5+ {[%emt 0:00:02]} Bxe5 {[%emt 0:00:02]} 40. Rxe5 {[%emt 0:00:02]} Kd6 {[%emt 0:00:01]} 41. Re3 {[%emt 0:00:02]} Rg4 {[%emt 0:00:01]} 42. Kf2 {[%emt 0:00:01]} Rd4 {[%emt 0:00:01]} 43. Rc3 {[%emt 0:00:03]} Rd2+ {[%emt 0:00:02]} 44. Kg1 {[%emt 0:00:04]} h4 {[%emt 0:00:01]} 45. b4 {[%emt 0:00:03]} Rb2 {[%emt 0:00:02]} 46. Rc4 {[%emt 0:00:06]} g5 {[%emt 0:00:02]} 47. Rc6+ {[%emt 0:00:01]} Ke5 {[%emt 0:00:01]} 48. d6 {[%emt 0:00:01]} Rxb4 {[%emt 0:00:02]} 49. Rc5+ {[%emt 0:00:01]} Kf6 {[%emt 0:00:02]} 50. Rc7 {[%emt 0:00:02]} Rd4 {[%emt 0:00:01]} 51. Rc6 {[%emt 0:00:00]} Ke5 {[%emt 0:00:02]} 52. Rc5+ {[%emt 0:00:02]} Kf4 {[%emt 0:00:02]} 53. Rd5 {[%emt 0:00:03]} Rxd5 {[%emt 0:00:01]} 54. Bxd5 {[%emt 0:00:00]} Ke5 {[%emt 0:00:02]} 55. Bf3 {[%emt 0:00:05]} Kxd6 {[%emt 0:00:01]} 56. Kg2 {[%emt 0:00:00]} Ke5 {[%emt 0:00:01]} 57. Kh2 {[%emt 0:00:02]} Kf4 {[%emt 0:00:01]} 58. Bc6 {[%emt 0:00:02]} g4 {[%emt 0:00:02]} 59. Bg2 {[%emt 0:00:02]} g3+ {[%emt 0:00:02]} 60. Kg1 {[%emt 0:00:01]} h3 {[%emt 0:00:01]} 61. Bf1 {[%emt 0:00:03]} Bg4 {[%emt 0:00:05]} 62. Kh1 {[%emt 0:00:02]} Bf3+ {[%emt 0:00:02]} 0-1

[Event "FIDE-Online-Steinitz-Memorial-Women"]
[Site "Internet"]
[Date "2020.05.15"]
[Round "3"]
[White "Cori T., Deysi"]
[Black "Kosteniuk, Alexandra"]
[Result "0-1"]
[ECO "E19"]
[WhiteElo "2391"]
[BlackElo "2521"]
[Annotator "ChessBase"]
[PlyCount "120"]
[EventDate "2020.05.15"]
[EventType "tourn"]
[SourceTitle "playchess.com"]
[Source "ChessBase"]
[SourceQuality "1"]
[TimeControl "180+2"]

1. d4 Nf6 2. c4 {[%emt 0:00:05]} e6 {[%emt 0:00:04]} 3. Nf3 {[%emt 0:00:02]} b6 {[%emt 0:00:01]} 4. g3 {[%emt 0:00:02]} Bb7 {[%emt 0:00:01]} 5. Bg2 {[%emt 0:00:01]} Be7 {[%emt 0:00:01]} 6. O-O {[%emt 0:00:01]} O-O {[%emt 0:00:01]} 7. Nc3 {[%emt 0:00:04]} Ne4 {[%emt 0:00:01]} 8. Qc2 {[%emt 0:00:02]} Nxc3 {[%emt 0:00:30]} 9. Qxc3 {[%emt 0:00:04]} c5 {[%emt 0:00:05]} 10. dxc5 {[%emt 0:00:17]} bxc5 {[%emt 0:00:06]} 11. Rd1 {[%emt 0:00:01]} Qb6 {[%emt 0:00:20]} 12. Bg5 {[%emt 0:00:31]} f6 {[%emt 0:00:08]} 13. Bf4 {[%emt 0:00:09]} d5 {[%emt 0:00:02]} 14. cxd5 {[%emt 0:00:03]} exd5 {[%emt 0:00:03]} 15. Nh4 {[%emt 0:00:09]} Rd8 {[%emt 0:00:10]} 16. Nf5 {[%emt 0:00:05]} Bf8 {[%emt 0:00:01]} 17. Rac1 {[%emt 0:00:24]} Na6 {[%emt 0:00:14]} 18. h4 {[%emt 0:00:32]} Nb4 {[%emt 0:00:13]} 19. Ra1 {[%emt 0:00:21]} Qe6 {[%emt 0:00:16]} 20. Ne3 {[%emt 0:00:29]} d4 {[%emt 0:00:10]} 21. Qc4 {[%emt 0:00:01]} Qxc4 {[%emt 0:00:04]} 22. Nxc4 {[%emt 0:00:01]} Bxg2 {[%emt 0:00:00]} 23. Kxg2 {[%emt 0:00:01]} Nd5 {[%emt 0:00:10]} 24. Bd2 {[%emt 0:00:02]} Rab8 {[%emt 0:00:02]} 25. Rac1 {[%emt 0:00:04]} Re8 {[%emt 0:00:04]} 26. Kf1 {[%emt 0:00:03]} Re6 {[%emt 0:00:06]} 27. b3 {[%emt 0:00:07]} Rbe8 {[%emt 0:00:03]} 28. Re1 {[%emt 0:00:01]} Ra6 {[%emt 0:00:08]} 29. a4 {[%emt 0:00:07]} Rb8 {[%emt 0:00:03]} 30. Rb1 {[%emt 0:00:02]} g6 {[%emt 0:00:07]} 31. e4 {[%emt 0:00:01]} dxe3 {[%emt 0:00:05]} 32. Bxe3 {[%emt 0:00:02]} Re6 {[%emt 0:00:12]} 33. Bd2 {[%emt 0:00:04]} Rxe1+ {[%emt 0:00:03]} 34. Bxe1 {[%emt 0:00:03]} Kf7 {[%emt 0:00:02]} 35. Rd1 {[%emt 0:00:02]} Ke6 {[%emt 0:00:01]} 36. Rd3 {[%emt 0:00:02]} f5 {[%emt 0:00:03]} 37. f3 {[%emt 0:00:01]} Nb6 {[%emt 0:00:13]} 38. Na5 {[%emt 0:00:02]} Rc8 {[%emt 0:00:08]} 39. Bf2 {[%emt 0:00:02]} c4 {[%emt 0:00:01]} 40. bxc4 {[%emt 0:00:02]} Nxc4 {[%emt 0:00:02]} 41. Nxc4 {[%emt 0:00:03]} Rxc4 {[%emt 0:00:01]} 42. Bxa7 {[%emt 0:00:01]} Rxa4 {[%emt 0:00:01]} 43. Be3 {[%emt 0:00:02]} Ra2 {[%emt 0:00:01]} 44. Rb3 {[%emt 0:00:02]} Bd6 {[%emt 0:00:04]} 45. Bf2 {[%emt 0:00:01]} h6 {[%emt 0:00:03]} 46. Rb6 {[%emt 0:00:02]} Kd5 {[%emt 0:00:01]} 47. Rb5+ {[%emt 0:00:04]} Ke6 {[%emt 0:00:01]} 48. Rb6 {[%emt 0:00:02]} Kd5 {[%emt 0:00:06]} 49. Rb5+ {[%emt 0:00:00]} Kc4 {[%emt 0:00:01]} 50. Rb6 {[%emt 0:00:02]} Rxf2+ {[%emt 0:00:01]} 51. Kxf2 {[%emt 0:00:03]} Bc5+ {[%emt 0:00:01]} 52. Ke2 {[%emt 0:00:02]} Bxb6 {[%emt 0:00:00]} 53. g4 {[%emt 0:00:00]} Kd5 {[%emt 0:00:02]} 54. h5 {[%emt 0:00:02]} g5 {[%emt 0:00:01]} 55. gxf5 {[%emt 0:00:01]} Ke5 {[%emt 0:00:00]} 56. Kf1 {[%emt 0:00:01]} Kxf5 {[%emt 0:00:01]} 57. Kg2 {[%emt 0:00:01]} Kf4 {[%emt 0:00:01]} 58. Kh2 {[%emt 0:00:02]} Kxf3 {[%emt 0:00:01]} 59. Kh3 {[%emt 0:00:00]} g4+ {[%emt 0:00:02]} 60. Kh4 {[%emt 0:00:02]} Bd8# {[%emt 0:00:04]} 0-1

[Event "FIDE-Online-Steinitz-Memorial-Women"]
[Site "Internet"]
[Date "2020.05.15"]
[Round "4"]
[White "Kosteniuk, Alexandra"]
[Black "Paehtz, Elisabeth"]
[Result "1-0"]
[ECO "B06"]
[WhiteElo "2521"]
[BlackElo "2396"]
[Annotator "RC"]
[PlyCount "89"]
[EventDate "2020.05.15"]
[EventType "tourn"]
[SourceTitle "playchess.com"]
[Source "ChessBase"]
[SourceQuality "1"]
[TimeControl "180+2"]

1. e4 c5 2. c3 {[%emt 0:00:04]} d5 {[%emt 0:00:05]} 3. exd5 {[%emt 0:00:01]} Qxd5 {[%emt 0:00:01]} 4. d4 {[%emt 0:00:00]} g6 {[%emt 0:00:01]} 5. Nf3 {[%emt 0:00:03]} Bg7 {[%emt 0:00:02]} 6. Be2 {[%emt 0:00:09]} cxd4 {[%emt 0:00:10]} 7. cxd4 {[%emt 0:00:03]} Nf6 {[%emt 0:00:03]} 8. Nc3 {[%emt 0:00:02]} Qd8 {[%emt 0:00:06]} 9. O-O {[%emt 0:00:09]} O-O {[%emt 0:00:02]} 10. h3 {[%emt 0:00:05]} Nbd7 {[%emt 0:00:02]} 11. Ne5 {[%emt 0:00:15]} Nb6 {[%emt 0:00:05]} 12. Bf3 {[%emt 0:00:03]} Nfd5 {[%emt 0:00:15]} 13. a4 {[%emt 0:00:01]} Nc7 {[%emt 0:00:12]} 14. a5 {[%emt 0:00:06]} Nbd5 {[%emt 0:00:01]} 15. a6 {[%emt 0:00:07]} e6 {[%emt 0:00:35]} 16. axb7 {[%emt 0:00:29]} Bxb7 {[%emt 0:00:02]} 17. Ne4 {[%emt 0:00:01]} Qe7 {[%emt 0:00:10]} 18. Re1 {[%emt 0:00:07]} f6 {[%emt 0:00:21]} 19. Nd3 {[%emt 0:00:11]} Bc6 {[%emt 0:00:15]} 20. Nec5 {[%emt 0:00:03]} Qf7 {[%emt 0:00:05]} 21. Nf4 {[%emt 0:00:09]} Rfe8 {[%emt 0:00:05]} 22. Bg4 {[%emt 0:00:23]} Nxf4 {[%emt 0:00:11]} 23. Bxf4 {[%emt 0:00:02]} f5 {[%emt 0:00:03]} 24. Bf3 {[%emt 0:00:35]} Bxf3 {[%emt 0:00:02]} 25. Qxf3 {[%emt 0:00:01]} Bxd4 {[%emt 0:00:08]} 26. Nb7 {[%emt 0:00:01]} Qg7 {[%emt 0:00:13]} 27. Qc6 {[%emt 0:00:21]} e5 {[%emt 0:00:05]} 28. Nd6 {[%emt 0:00:04]} Rf8 {[%emt 0:00:08]} 29. Qc4+ {[%emt 0:00:02]} Kh8 {[%emt 0:00:01]} 30. Bh6 {[%emt 0:00:05]} Qxh6 {[%emt 0:00:04]} 31. Nf7+ {[%emt 0:00:01]} Rxf7 {[%emt 0:00:02]} 32. Qxf7 {[%emt 0:00:00]} Qg7 {[%emt 0:00:04]} 33. Qb3 {[%emt 0:00:01]} Rf8 {[%emt 0:00:03]} 34. Rac1 {[%emt 0:00:02]} Qf7 {[%emt 0:00:05]} 35. Qb7 {[%emt 0:00:03]} Ne6 {[%emt 0:00:03]} 36. Qb5 {[%emt 0:00:04]} Nf4 {[%emt 0:00:01]} 37. Rxe5 {[%emt 0:00:01]} Qg7 {[%emt 0:00:07]} 38. Re8 {[%emt 0:00:04]} h5 {[%emt 0:00:05]} 39. Rcc8 {[%emt 0:00:04]} Rxe8 {[%emt 0:00:01]} 40. Rxe8+ {[%emt 0:00:02]} Kh7 {[%emt 0:00:01]} 41. Qb4 {[%emt 0:00:03]} Nd5 {[%emt 0:00:05]} 42. Qd6 {[%emt 0:00:02]} Qb7 {[%emt 0:00:03]} 43. Rd8 {[%emt 0:00:02]} Nf6 {[%emt 0:00:03]} 44. Qxd4 {[%emt 0:00:02]} Kh6 {[%emt 0:00:02]} 45. Qxf6 {[%emt 0:00:02]} 1-0